[Event "January 9 Early 2024"]
[Site "https://www.chess.com"]
[Date "2024.01.11"]
[Round "2"]
[White "Bournel, Antoine"]
[Black "Kuzubov, Yuriy"]
[Result "1/2-1/2"]
[Board "297"]
[TimeControl "180+1"]
[WhiteFideId "26093553"]
[BlackFideId "14112906"]
[WhiteElo "2574"]
[BlackElo "2848"]
[WhiteTeam "FRA"]
[BlackTeam "UKR"]
[WhiteClock "0:00:11"]
[BlackClock "0:00:10"]

1. d4 {[%clk 0:03:00]}  Nf6 {[%clk 0:02:59]} 2. Nf3 {[%clk 0:03:00]}  e6 {[%clk 0:03:00]} 3. c4 {[%clk 0:03:00]}  d5 {[%clk 0:02:59]} 4. Nc3 {[%clk 0:03:00]}  Nbd7 {[%clk 0:02:59]} 5. cxd5 {[%clk 0:02:52]}  exd5 {[%clk 0:03:00]} 6. Bg5 {[%clk 0:02:52]}  c6 {[%clk 0:03:00]} 7. Qc2 {[%clk 0:02:49]}  h6 {[%clk 0:03:00]} 8. Bh4 {[%clk 0:02:49]}  g5 {[%clk 0:03:00]} 9. Bg3 {[%clk 0:02:49]}  Nh5 {[%clk 0:03:01]} 10. O-O-O {[%clk 0:02:40]}  Nxg3 {[%clk 0:02:55]} 11. hxg3 {[%clk 0:02:37]}  Nb6 {[%clk 0:02:53]} 12. e4 {[%clk 0:02:35]}  Be6 {[%clk 0:02:52]} 13. Bd3 {[%clk 0:02:23]}  Qf6 {[%clk 0:02:42]} 14. e5 {[%clk 0:02:16]}  Qg7 {[%clk 0:02:39]} 15. Kb1 {[%clk 0:02:05]}  O-O-O {[%clk 0:02:38]} 16. Rc1 {[%clk 0:02:03]}  Kb8 {[%clk 0:02:38]} 17. Ka1 {[%clk 0:02:02]}  Rc8 {[%clk 0:02:36]} 18. Na4 {[%clk 0:01:49]}  Nxa4 {[%clk 0:02:21]} 19. Qxa4 {[%clk 0:01:49]}  c5 {[%clk 0:02:22]} 20. dxc5 {[%clk 0:01:49]}  Bxc5 {[%clk 0:02:21]} 21. Rc2 {[%clk 0:01:09]}  Bb6 {[%clk 0:02:12]} 22. Re2 {[%clk 0:00:57]}  Rc7 {[%clk 0:01:51]} 23. a3 {[%clk 0:00:56]}  Rhc8 {[%clk 0:01:38]} 24. Kb1 {[%clk 0:00:55]}  Qg8 {[%clk 0:01:11]} 25. Qb4 {[%clk 0:00:39]}  Ka8 {[%clk 0:01:01]} 26. Rd1 {[%clk 0:00:27]}  Bc5 {[%clk 0:00:55]} 27. Qa5 {[%clk 0:00:23]}  g4 {[%clk 0:00:51]} 28. Nd2 {[%clk 0:00:20]}  Bb6 {[%clk 0:00:49]} 29. Qa4 {[%clk 0:00:19]}  h5 {[%clk 0:00:41]} 30. Nb3 {[%clk 0:00:18]}  Qg5 {[%clk 0:00:39]} 31. Qf4 {[%clk 0:00:18]}  Qxf4 {[%clk 0:00:21]} 32. gxf4 {[%clk 0:00:19]}  d4 {[%clk 0:00:20]} 33. Nd2 {[%clk 0:00:19]}  Rg8 {[%clk 0:00:18]} 34. Rh1 {[%clk 0:00:18]}  g3 {[%clk 0:00:17]} 35. f3 {[%clk 0:00:15]}  Rgc8 {[%clk 0:00:15]} 36. f5 {[%clk 0:00:12]}  Bd5 {[%clk 0:00:14]} 37. Ne4 {[%clk 0:00:12]}  Bxe4 {[%clk 0:00:12]} 38. Rxe4 {[%clk 0:00:12]}  a6 {[%clk 0:00:10]} 39. Ree1 {[%clk 0:00:12]}  Rh8 {[%clk 0:00:10]} 40. Rh4 {[%clk 0:00:12]}  Rc5 {[%clk 0:00:08]} 41. f4 {[%clk 0:00:12]}  f6 {[%clk 0:00:06]} 42. exf6 {[%clk 0:00:10]}  Bd8 {[%clk 0:00:05]} 43. Re6 {[%clk 0:00:09]}  Rc6 {[%clk 0:00:05]} 44. Be2 {[%clk 0:00:06]}  Bxf6 {[%clk 0:00:05]} 45. Rxh5 {[%clk 0:00:06]}  Rxh5 {[%clk 0:00:05]} 46. Bxh5 {[%clk 0:00:07]}  Kb8 {[%clk 0:00:05]} 47. Rxc6 {[%clk 0:00:06]}  bxc6 {[%clk 0:00:05]} 48. Kc2 {[%clk 0:00:06]}  Kc7 {[%clk 0:00:05]} 49. Kd3 {[%clk 0:00:05]}  Kd6 {[%clk 0:00:05]} 50. Kc4 {[%clk 0:00:05]}  a5 {[%clk 0:00:06]} 51. b4 {[%clk 0:00:05]}  axb4 {[%clk 0:00:06]} 52. axb4 {[%clk 0:00:06]}  Kc7 {[%clk 0:00:06]} 53. b5 {[%clk 0:00:06]}  cxb5+ {[%clk 0:00:06]} 54. Kxb5 {[%clk 0:00:07]}  Kd6 {[%clk 0:00:06]} 55. Kc4 {[%clk 0:00:07]}  Bd8 {[%clk 0:00:06]} 56. Bf3 {[%clk 0:00:07]}  Ke7 {[%clk 0:00:06]} 57. Kxd4 {[%clk 0:00:06]}  Kf6 {[%clk 0:00:06]} 58. Ke4 {[%clk 0:00:07]}  Bb6 {[%clk 0:00:06]} 59. Be2 {[%clk 0:00:06]}  Bf2 {[%clk 0:00:06]} 60. Bd3 {[%clk 0:00:06]}  Be1 {[%clk 0:00:07]} 61. Kf3 {[%clk 0:00:07]}  Bf2 {[%clk 0:00:07]} 62. Kg4 {[%clk 0:00:07]}  Be1 {[%clk 0:00:07]} 63. Be4 {[%clk 0:00:08]}  Bf2 {[%clk 0:00:08]} 64. Bd5 {[%clk 0:00:08]}  Be1 {[%clk 0:00:09]} 65. Be6 {[%clk 0:00:09]}  Bf2 {[%clk 0:00:09]} 66. Kf3 {[%clk 0:00:10]}  Be1 {[%clk 0:00:10]} 67. Kg4 {[%clk 0:00:11]}  Bf2 {[%clk 0:00:10]} 1/2-1/2

[Event "January 9 Early 2024"]
[Site "https://www.chess.com"]
[Date "2024.01.11"]
[Round "2"]
[White "Barria Santos, Jose Guilherme"]
[Black "Luukkonen, Tommi"]
[Result "1-0"]
[Board "299"]
[TimeControl "180+1"]
[WhiteFideId "1939300"]
[BlackFideId "501808"]
[WhiteElo "2525"]
[BlackElo "2304"]
[WhiteTeam "POR"]
[BlackTeam "FIN"]
[WhiteClock "0:00:08"]
[BlackClock "0:00:01"]

1. e4 {[%clk 0:03:00]}  c5 {[%clk 0:02:58]} 2. Nf3 {[%clk 0:03:00]}  d6 {[%clk 0:02:58]} 3. d4 {[%clk 0:02:59]}  cxd4 {[%clk 0:02:58]} 4. Nxd4 {[%clk 0:03:00]}  Nf6 {[%clk 0:02:58]} 5. Nc3 {[%clk 0:03:00]}  g6 {[%clk 0:02:58]} 6. Be2 {[%clk 0:02:58]}  Bg7 {[%clk 0:02:58]} 7. O-O {[%clk 0:02:59]}  O-O {[%clk 0:02:57]} 8. Re1 {[%clk 0:02:59]}  Nc6 {[%clk 0:02:56]} 9. Bf1 {[%clk 0:03:00]}  Bd7 {[%clk 0:02:53]} 10. Nb3 {[%clk 0:03:00]}  a5 {[%clk 0:02:52]} 11. a4 {[%clk 0:02:57]}  Nb4 {[%clk 0:02:52]} 12. Nd5 {[%clk 0:02:49]}  Rc8 {[%clk 0:02:37]} 13. c3 {[%clk 0:02:49]}  Nbxd5 {[%clk 0:02:37]} 14. exd5 {[%clk 0:02:50]}  Re8 {[%clk 0:02:27]} 15. Be2 {[%clk 0:02:46]}  e6 {[%clk 0:02:20]} 16. dxe6 {[%clk 0:02:47]}  Bxe6 {[%clk 0:02:20]} 17. Nd4 {[%clk 0:02:46]}  Bd5 {[%clk 0:02:13]} 18. Be3 {[%clk 0:02:47]}  Be4 {[%clk 0:01:56]} 19. Bb5 {[%clk 0:02:46]}  Re7 {[%clk 0:01:52]} 20. Bg5 {[%clk 0:02:46]}  h6 {[%clk 0:01:47]} 21. Bh4 {[%clk 0:02:31]}  g5 {[%clk 0:01:34]} 22. Bg3 {[%clk 0:02:32]}  Bg6 {[%clk 0:01:33]} 23. Qf3 {[%clk 0:02:12]}  Be4 {[%clk 0:01:27]} 24. Rxe4 {[%clk 0:01:49]}  Nxe4 {[%clk 0:01:18]} 25. Nf5 {[%clk 0:01:47]}  Re6 {[%clk 0:01:11]} 26. Rd1 {[%clk 0:01:38]}  Qf6 {[%clk 0:01:09]} 27. Bd7 {[%clk 0:01:29]}  Nxg3 {[%clk 0:00:51]} 28. hxg3 {[%clk 0:01:28]}  Rce8 {[%clk 0:00:37]} 29. Bxe8 {[%clk 0:01:28]}  Rxe8 {[%clk 0:00:36]} 30. Rxd6 {[%clk 0:01:29]}  Re6 {[%clk 0:00:26]} 31. Rxe6 {[%clk 0:01:27]}  Qxe6 {[%clk 0:00:25]} 32. g4 {[%clk 0:01:07]}  Qe1+ {[%clk 0:00:24]} 33. Kh2 {[%clk 0:01:06]}  Qe5+ {[%clk 0:00:25]} 34. g3 {[%clk 0:01:06]}  Bf8 {[%clk 0:00:25]} 35. Kg2 {[%clk 0:00:55]}  b6 {[%clk 0:00:24]} 36. Qc6 {[%clk 0:00:50]}  Qe6 {[%clk 0:00:18]} 37. Qxe6 {[%clk 0:00:47]}  fxe6 {[%clk 0:00:19]} 38. Nd4 {[%clk 0:00:48]}  Kf7 {[%clk 0:00:20]} 39. Kf3 {[%clk 0:00:48]}  Bc5 {[%clk 0:00:19]} 40. Ke4 {[%clk 0:00:47]}  Ke7 {[%clk 0:00:18]} 41. f3 {[%clk 0:00:45]}  Kd6 {[%clk 0:00:17]} 42. f4 {[%clk 0:00:39]}  gxf4 {[%clk 0:00:17]} 43. gxf4 {[%clk 0:00:39]}  Ke7 {[%clk 0:00:17]} 44. b4 {[%clk 0:00:34]}  axb4 {[%clk 0:00:15]} 45. cxb4 {[%clk 0:00:35]}  Bd6 {[%clk 0:00:16]} 46. a5 {[%clk 0:00:33]}  bxa5 {[%clk 0:00:16]} 47. bxa5 {[%clk 0:00:34]}  Bc5 {[%clk 0:00:15]} 48. a6 {[%clk 0:00:33]}  Kd7 {[%clk 0:00:15]} 49. Nb5 {[%clk 0:00:27]}  Kc6 {[%clk 0:00:15]} 50. a7 {[%clk 0:00:27]}  Kb7 {[%clk 0:00:15]} 51. Ke5 {[%clk 0:00:20]}  Be3 {[%clk 0:00:15]} 52. Nc7 {[%clk 0:00:10]}  Kxa7 {[%clk 0:00:14]} 53. Nxe6 {[%clk 0:00:09]}  Kb7 {[%clk 0:00:14]} 54. Ng7 {[%clk 0:00:09]}  Bd2 {[%clk 0:00:10]} 55. Nf5 {[%clk 0:00:09]}  h5 {[%clk 0:00:03]} 56. gxh5 {[%clk 0:00:10]}  Kc7 {[%clk 0:00:03]} 57. h6 {[%clk 0:00:09]}  Bc3+ {[%clk 0:00:03]} 58. Ke6 {[%clk 0:00:09]}  Kd8 {[%clk 0:00:02]} 59. Kf7 {[%clk 0:00:08]}  Kd7 {[%clk 0:00:01]} 60. Ng7 {[%clk 0:00:08]} 1-0

[Event "January 9 Early 2024"]
[Site "https://www.chess.com"]
[Date "2024.01.11"]
[Round "2"]
[White "Aukhatov, Roman"]
[Black "Tqebuchava, Zurab"]
[Result "1-0"]
[Board "300"]
[TimeControl "180+1"]
[WhiteFideId "44150768"]
[BlackFideId "13601113"]
[WhiteElo "2459"]
[BlackElo "2131"]
[WhiteTeam "RUS"]
[BlackTeam "GEO"]
[WhiteClock "0:00:14"]
[BlackClock "0:00:10"]

1. Nf3 {[%clk 0:03:00]}  d5 {[%clk 0:02:59]} 2. d4 {[%clk 0:02:56]}  Nf6 {[%clk 0:02:59]} 3. c4 {[%clk 0:02:56]}  c6 {[%clk 0:02:56]} 4. Qc2 {[%clk 0:02:56]}  e6 {[%clk 0:02:53]} 5. Nbd2 {[%clk 0:02:56]}  Be7 {[%clk 0:02:52]} 6. g3 {[%clk 0:02:56]}  O-O {[%clk 0:02:52]} 7. Bg2 {[%clk 0:02:57]}  b6 {[%clk 0:02:48]} 8. O-O {[%clk 0:02:58]}  Bb7 {[%clk 0:02:47]} 9. e4 {[%clk 0:02:57]}  dxe4 {[%clk 0:02:46]} 10. Nxe4 {[%clk 0:02:58]}  Nxe4 {[%clk 0:02:46]} 11. Qxe4 {[%clk 0:02:55]}  Bf6 {[%clk 0:02:39]} 12. h4 {[%clk 0:02:52]}  Nd7 {[%clk 0:02:22]} 13. Bg5 {[%clk 0:02:47]}  h6 {[%clk 0:02:18]} 14. Bxf6 {[%clk 0:02:40]}  Qxf6 {[%clk 0:02:11]} 15. Rfd1 {[%clk 0:02:30]}  Rab8 {[%clk 0:02:08]} 16. Ne5 {[%clk 0:02:22]}  Nxe5 {[%clk 0:02:05]} 17. dxe5 {[%clk 0:02:19]}  Qe7 {[%clk 0:02:05]} 18. Rd6 {[%clk 0:02:08]}  c5 {[%clk 0:02:02]} 19. Qd3 {[%clk 0:02:08]}  Bxg2 {[%clk 0:02:00]} 20. Kxg2 {[%clk 0:02:09]}  Qb7+ {[%clk 0:01:44]} 21. Kg1 {[%clk 0:02:05]}  b5 {[%clk 0:01:41]} 22. b3 {[%clk 0:02:05]}  a6 {[%clk 0:01:33]} 23. Rd1 {[%clk 0:02:01]}  bxc4 {[%clk 0:01:29]} 24. Qxc4 {[%clk 0:01:56]}  Qb5 {[%clk 0:01:29]} 25. Rc1 {[%clk 0:01:55]}  Rfc8 {[%clk 0:01:04]} 26. Rxa6 {[%clk 0:01:51]}  Qb7 {[%clk 0:01:03]} 27. Rd6 {[%clk 0:01:44]}  Qf3 {[%clk 0:01:02]} 28. Qd3 {[%clk 0:01:44]}  Qxd3 {[%clk 0:00:57]} 29. Rxd3 {[%clk 0:01:45]}  Ra8 {[%clk 0:00:57]} 30. Rc2 {[%clk 0:01:39]}  Ra5 {[%clk 0:00:55]} 31. Rdc3 {[%clk 0:01:35]}  Rca8 {[%clk 0:00:45]} 32. a4 {[%clk 0:01:27]}  Rb8 {[%clk 0:00:44]} 33. Rxc5 {[%clk 0:01:10]}  Rxc5 {[%clk 0:00:42]} 34. Rxc5 {[%clk 0:01:11]}  Rxb3 {[%clk 0:00:42]} 35. h5 {[%clk 0:01:11]}  Kf8 {[%clk 0:00:38]} 36. Kf1 {[%clk 0:00:57]}  Rb2 {[%clk 0:00:35]} 37. Rc7 {[%clk 0:00:50]}  Ra2 {[%clk 0:00:33]} 38. Ra7 {[%clk 0:00:50]}  Kg8 {[%clk 0:00:30]} 39. Kg2 {[%clk 0:00:42]}  Ra3 {[%clk 0:00:28]} 40. g4 {[%clk 0:00:41]}  Kf8 {[%clk 0:00:28]} 41. f3 {[%clk 0:00:40]}  Re3 {[%clk 0:00:26]} 42. Ra5 {[%clk 0:00:37]}  Ke7 {[%clk 0:00:26]} 43. Kf2 {[%clk 0:00:37]}  Ra3 {[%clk 0:00:26]} 44. Ra7+ {[%clk 0:00:37]}  Ke8 {[%clk 0:00:26]} 45. Kg3 {[%clk 0:00:37]}  Kf8 {[%clk 0:00:26]} 46. Kf4 {[%clk 0:00:36]}  Ke8 {[%clk 0:00:26]} 47. Ke4 {[%clk 0:00:36]}  Kf8 {[%clk 0:00:25]} 48. a5 {[%clk 0:00:12]}  Ke8 {[%clk 0:00:25]} 49. a6 {[%clk 0:00:12]}  Ra4+ {[%clk 0:00:25]} 50. Kd3 {[%clk 0:00:12]}  Ra3+ {[%clk 0:00:24]} 51. Kc4 {[%clk 0:00:12]}  Rxf3 {[%clk 0:00:24]} 52. Rb7 {[%clk 0:00:12]}  Rf4+ {[%clk 0:00:23]} 53. Kc5 {[%clk 0:00:12]}  Rxg4 {[%clk 0:00:09]} 54. a7 {[%clk 0:00:12]}  Ra4 {[%clk 0:00:09]} 55. Rb8+ {[%clk 0:00:11]}  Ke7 {[%clk 0:00:10]} 56. a8=Q {[%clk 0:00:12]}  Rxa8 {[%clk 0:00:11]} 57. Rxa8 {[%clk 0:00:13]}  f5 {[%clk 0:00:10]} 58. Ra7+ {[%clk 0:00:14]} 1-0

[Event "January 9 Early 2024"]
[Site "https://www.chess.com"]
[Date "2024.01.11"]
[Round "2"]
[White "Ashraf, Artin"]
[Black "Caspi, Israel"]
[Result "0-1"]
[Board "301"]
[TimeControl "180+1"]
[WhiteFideId "22514805"]
[BlackFideId "2807394"]
[WhiteElo "2908"]
[BlackElo "2623"]
[WhiteTeam "IRI"]
[BlackTeam "ISR"]
[WhiteClock "0:00:03"]
[BlackClock "0:00:15"]

1. d4 {[%clk 0:03:00]}  Nf6 {[%clk 0:02:58]} 2. Bf4 {[%clk 0:03:00]}  d6 {[%clk 0:02:52]} 3. Nc3 {[%clk 0:02:58]}  Nbd7 {[%clk 0:02:49]} 4. Nf3 {[%clk 0:02:57]}  c6 {[%clk 0:02:47]} 5. e4 {[%clk 0:02:56]}  g6 {[%clk 0:02:46]} 6. e5 {[%clk 0:02:48]}  Nh5 {[%clk 0:02:43]} 7. Be3 {[%clk 0:02:38]}  Qa5 {[%clk 0:02:26]} 8. exd6 {[%clk 0:02:04]}  exd6 {[%clk 0:02:26]} 9. Qd2 {[%clk 0:02:05]}  Bg7 {[%clk 0:02:21]} 10. Bd3 {[%clk 0:02:03]}  O-O {[%clk 0:02:21]} 11. O-O {[%clk 0:02:02]}  Nhf6 {[%clk 0:02:15]} 12. Bh6 {[%clk 0:01:58]}  Nb6 {[%clk 0:01:56]} 13. Bxg7 {[%clk 0:01:39]}  Kxg7 {[%clk 0:01:57]} 14. Qf4 {[%clk 0:01:39]}  Rd8 {[%clk 0:01:37]} 15. Rfe1 {[%clk 0:01:37]}  Bg4 {[%clk 0:01:35]} 16. Nd2 {[%clk 0:01:02]}  Be6 {[%clk 0:01:30]} 17. Nde4 {[%clk 0:00:58]}  Nbd5 {[%clk 0:01:25]} 18. Nxd5 {[%clk 0:00:56]}  Nxd5 {[%clk 0:01:26]} 19. Qg3 {[%clk 0:00:55]}  Qc7 {[%clk 0:01:23]} 20. c3 {[%clk 0:00:54]}  Bf5 {[%clk 0:01:20]} 21. h4 {[%clk 0:00:39]}  Bxe4 {[%clk 0:01:18]} 22. Bxe4 {[%clk 0:00:39]}  Nf6 {[%clk 0:01:18]} 23. Bf3 {[%clk 0:00:39]}  h5 {[%clk 0:01:11]} 24. Qg5 {[%clk 0:00:30]}  Re8 {[%clk 0:01:11]} 25. a4 {[%clk 0:00:30]}  a5 {[%clk 0:01:03]} 26. Qd2 {[%clk 0:00:26]}  Rxe1+ {[%clk 0:00:56]} 27. Rxe1 {[%clk 0:00:27]}  Re8 {[%clk 0:00:56]} 28. Rb1 {[%clk 0:00:26]}  d5 {[%clk 0:00:51]} 29. Re1 {[%clk 0:00:21]}  Rxe1+ {[%clk 0:00:48]} 30. Qxe1 {[%clk 0:00:22]}  Qb6 {[%clk 0:00:45]} 31. Qe2 {[%clk 0:00:21]}  Qb3 {[%clk 0:00:44]} 32. Qd2 {[%clk 0:00:08]}  Qxa4 {[%clk 0:00:42]} 33. Bd1 {[%clk 0:00:07]}  Qa1 {[%clk 0:00:41]} 34. f3 {[%clk 0:00:06]}  a4 {[%clk 0:00:39]} 35. Kf2 {[%clk 0:00:06]}  b5 {[%clk 0:00:38]} 36. Be2 {[%clk 0:00:05]}  a3 {[%clk 0:00:34]} 37. bxa3 {[%clk 0:00:06]}  Qxa3 {[%clk 0:00:35]} 38. Bd3 {[%clk 0:00:07]}  Qe7 {[%clk 0:00:33]} 39. Qf4 {[%clk 0:00:05]}  Ne8 {[%clk 0:00:32]} 40. g4 {[%clk 0:00:05]}  Qxh4+ {[%clk 0:00:32]} 41. Kg2 {[%clk 0:00:06]}  hxg4 {[%clk 0:00:30]} 42. fxg4 {[%clk 0:00:07]}  Nf6 {[%clk 0:00:29]} 43. Be2 {[%clk 0:00:07]}  Nh7 {[%clk 0:00:27]} 44. Qe5+ {[%clk 0:00:05]}  Qf6 {[%clk 0:00:28]} 45. Qe3 {[%clk 0:00:05]}  Ng5 {[%clk 0:00:28]} 46. Bd3 {[%clk 0:00:06]}  Ne6 {[%clk 0:00:28]} 47. Kg3 {[%clk 0:00:06]}  b4 {[%clk 0:00:25]} 48. cxb4 {[%clk 0:00:06]}  Qxd4 {[%clk 0:00:25]} 49. Qd2 {[%clk 0:00:04]}  Qe5+ {[%clk 0:00:24]} 50. Kf3 {[%clk 0:00:04]}  Nd4+ {[%clk 0:00:23]} 51. Kg2 {[%clk 0:00:05]}  Ne6 {[%clk 0:00:20]} 52. Kf3 {[%clk 0:00:04]}  Qf6+ {[%clk 0:00:20]} 53. Kg3 {[%clk 0:00:05]}  g5 {[%clk 0:00:20]} 54. Bf5 {[%clk 0:00:05]}  Qe5+ {[%clk 0:00:20]} 55. Kg2 {[%clk 0:00:04]}  Nf4+ {[%clk 0:00:20]} 56. Kf3 {[%clk 0:00:04]}  d4 {[%clk 0:00:17]} 57. Kf2 {[%clk 0:00:02]}  Kf6 {[%clk 0:00:16]} 58. Kf3 {[%clk 0:00:03]}  Nd5 {[%clk 0:00:15]} 59. Kf2 {[%clk 0:00:03]}  Qe3+ {[%clk 0:00:14]} 60. Qxe3 {[%clk 0:00:03]}  Nxe3 {[%clk 0:00:15]} 61. Be4 {[%clk 0:00:03]}  Nxg4+ {[%clk 0:00:15]} 62. Ke2 {[%clk 0:00:03]}  Ne5 {[%clk 0:00:15]} 0-1

[Event "January 9 Early 2024"]
[Site "https://www.chess.com"]
[Date "2024.01.11"]
[Round "2"]
[White "Karavade, Eesha"]
[Black "Baruch, Liam"]
[Result "1-0"]
[Board "304"]
[TimeControl "180+1"]
[WhiteFideId "5012600"]
[BlackFideId "14322064"]
[WhiteElo "2451"]
[BlackElo "2101"]
[WhiteTeam "IND"]
[BlackTeam "RSA"]
[WhiteClock "0:00:27"]
[BlackClock "0:00:05"]

1. d4 {[%clk 0:03:00]}  d5 {[%clk 0:03:00]} 2. Nf3 {[%clk 0:03:00]}  Nf6 {[%clk 0:03:00]} 3. Bf4 {[%clk 0:03:00]}  c5 {[%clk 0:03:00]} 4. e3 {[%clk 0:03:01]}  Nc6 {[%clk 0:03:00]} 5. Nbd2 {[%clk 0:03:01]}  Bf5 {[%clk 0:03:00]} 6. c3 {[%clk 0:02:51]}  e6 {[%clk 0:03:00]} 7. Qb3 {[%clk 0:02:51]}  Qb6 {[%clk 0:02:59]} 8. Qxb6 {[%clk 0:02:48]}  axb6 {[%clk 0:03:00]} 9. Bb5 {[%clk 0:02:48]}  Rc8 {[%clk 0:02:48]} 10. Ne5 {[%clk 0:02:40]}  Nh5 {[%clk 0:02:45]} 11. Nxc6 {[%clk 0:02:39]}  bxc6 {[%clk 0:02:45]} 12. Ba6 {[%clk 0:02:39]}  Nxf4 {[%clk 0:02:25]} 13. Bxc8 {[%clk 0:02:36]}  Nxg2+ {[%clk 0:02:25]} 14. Ke2 {[%clk 0:02:35]}  Nh4 {[%clk 0:02:24]} 15. Rhg1 {[%clk 0:02:31]}  Ng6 {[%clk 0:02:16]} 16. b3 {[%clk 0:02:26]}  Bd6 {[%clk 0:02:16]} 17. a4 {[%clk 0:02:24]}  Bxh2 {[%clk 0:02:15]} 18. Rg2 {[%clk 0:02:21]}  Bc7 {[%clk 0:02:13]} 19. dxc5 {[%clk 0:02:20]}  bxc5 {[%clk 0:02:12]} 20. a5 {[%clk 0:02:20]}  Ke7 {[%clk 0:02:10]} 21. Bb7 {[%clk 0:02:19]}  Ne5 {[%clk 0:01:56]} 22. a6 {[%clk 0:02:19]}  Bd3+ {[%clk 0:01:44]} 23. Ke1 {[%clk 0:02:18]}  Nd7 {[%clk 0:01:39]} 24. a7 {[%clk 0:02:16]}  Nb6 {[%clk 0:01:34]} 25. a8=Q {[%clk 0:02:16]}  Nxa8 {[%clk 0:01:33]} 26. Rxa8 {[%clk 0:02:15]}  Rxa8 {[%clk 0:01:30]} 27. Bxa8 {[%clk 0:02:15]}  g6 {[%clk 0:01:30]} 28. c4 {[%clk 0:02:12]}  Kd6 {[%clk 0:01:28]} 29. Bb7 {[%clk 0:02:07]}  Ba5 {[%clk 0:01:26]} 30. e4 {[%clk 0:01:43]}  Bxe4 {[%clk 0:01:21]} 31. Rh2 {[%clk 0:01:43]}  h5 {[%clk 0:01:20]} 32. cxd5 {[%clk 0:01:40]}  cxd5 {[%clk 0:01:18]} 33. Ba6 {[%clk 0:01:40]}  Bc2 {[%clk 0:01:16]} 34. Ke2 {[%clk 0:01:37]}  Ke5 {[%clk 0:01:08]} 35. Bd3 {[%clk 0:01:33]}  Bxd3+ {[%clk 0:00:54]} 36. Kxd3 {[%clk 0:01:31]}  Kf4 {[%clk 0:00:54]} 37. Nf1 {[%clk 0:01:21]}  e5 {[%clk 0:00:54]} 38. Ne3 {[%clk 0:01:18]}  e4+ {[%clk 0:00:54]} 39. Ke2 {[%clk 0:01:17]}  d4 {[%clk 0:00:54]} 40. Nc4 {[%clk 0:01:09]}  d3+ {[%clk 0:00:54]} 41. Kf1 {[%clk 0:01:06]}  Bb4 {[%clk 0:00:52]} 42. Rh4+ {[%clk 0:01:03]}  Kf5 {[%clk 0:00:44]} 43. Nd6+ {[%clk 0:01:01]}  Ke5 {[%clk 0:00:42]} 44. Nxe4 {[%clk 0:01:00]}  f5 {[%clk 0:00:39]} 45. Ng5 {[%clk 0:00:58]}  Kf6 {[%clk 0:00:34]} 46. f4 {[%clk 0:00:56]}  Bd2 {[%clk 0:00:32]} 47. Kf2 {[%clk 0:00:51]}  Bc1 {[%clk 0:00:31]} 48. Nf3 {[%clk 0:00:50]}  Ke6 {[%clk 0:00:21]} 49. Ne5 {[%clk 0:00:46]}  d2 {[%clk 0:00:12]} 50. Ke2 {[%clk 0:00:46]}  Kf6 {[%clk 0:00:12]} 51. Nd3 {[%clk 0:00:44]}  Ke6 {[%clk 0:00:06]} 52. Nxc5+ {[%clk 0:00:43]}  Kd5 {[%clk 0:00:07]} 53. Nd3 {[%clk 0:00:42]}  Kd4 {[%clk 0:00:04]} 54. Rh3 {[%clk 0:00:42]}  Kc3 {[%clk 0:00:04]} 55. Nxc1+ {[%clk 0:00:41]}  Kc2 {[%clk 0:00:04]} 56. Rh1 {[%clk 0:00:32]}  dxc1=Q {[%clk 0:00:05]} 57. Rxc1+ {[%clk 0:00:31]}  Kxc1 {[%clk 0:00:05]} 58. b4 {[%clk 0:00:32]}  h4 {[%clk 0:00:06]} 59. b5 {[%clk 0:00:31]}  h3 {[%clk 0:00:06]} 60. Kf2 {[%clk 0:00:31]}  g5 {[%clk 0:00:06]} 61. b6 {[%clk 0:00:27]}  h2 {[%clk 0:00:04]} 62. Kg2 {[%clk 0:00:26]}  gxf4 {[%clk 0:00:04]} 63. b7 {[%clk 0:00:26]}  f3+ {[%clk 0:00:05]} 64. Kxh2 {[%clk 0:00:26]}  f2 {[%clk 0:00:04]} 65. Kg2 {[%clk 0:00:27]}  Kd1 {[%clk 0:00:05]} 66. Kxf2 {[%clk 0:00:27]} 1-0

[Event "January 9 Early 2024"]
[Site "https://www.chess.com"]
[Date "2024.01.11"]
[Round "2"]
[White "Sarana, Alexey"]
[Black "Akobian, Varuzhan"]
[Result "1-0"]
[Board "306"]
[TimeControl "180+1"]
[WhiteFideId "24133795"]
[BlackFideId "13300580"]
[WhiteElo "3063"]
[BlackElo "2668"]
[WhiteTeam "SRB"]
[BlackTeam "USA"]
[WhiteClock "0:00:05"]
[BlackClock "0:00:01"]

1. d4 {[%clk 0:02:59]}  Nf6 {[%clk 0:02:58]} 2. c4 {[%clk 0:02:59]}  e6 {[%clk 0:02:57]} 3. Nc3 {[%clk 0:03:00]}  Bb4 {[%clk 0:02:56]} 4. e3 {[%clk 0:03:01]}  d5 {[%clk 0:02:55]} 5. Nf3 {[%clk 0:03:00]}  O-O {[%clk 0:02:55]} 6. Bd3 {[%clk 0:03:00]}  c5 {[%clk 0:02:51]} 7. O-O {[%clk 0:02:59]}  dxc4 {[%clk 0:02:50]} 8. Bxc4 {[%clk 0:03:00]}  Nbd7 {[%clk 0:02:50]} 9. a3 {[%clk 0:02:58]}  Bxc3 {[%clk 0:02:49]} 10. bxc3 {[%clk 0:02:58]}  b6 {[%clk 0:02:50]} 11. Qe2 {[%clk 0:02:57]}  Bb7 {[%clk 0:02:49]} 12. Bb2 {[%clk 0:02:58]}  Qc7 {[%clk 0:02:47]} 13. h3 {[%clk 0:02:57]}  Rac8 {[%clk 0:02:45]} 14. Rac1 {[%clk 0:02:56]}  Ne4 {[%clk 0:02:44]} 15. Bd3 {[%clk 0:02:51]}  h6 {[%clk 0:02:34]} 16. Nh2 {[%clk 0:02:51]}  Qb8 {[%clk 0:02:30]} 17. Rfe1 {[%clk 0:02:50]}  Rfd8 {[%clk 0:02:25]} 18. f3 {[%clk 0:02:49]}  Nef6 {[%clk 0:02:08]} 19. e4 {[%clk 0:02:46]}  Nf8 {[%clk 0:02:02]} 20. Qe3 {[%clk 0:02:41]}  Ng6 {[%clk 0:02:01]} 21. Ng4 {[%clk 0:02:42]}  Nxg4 {[%clk 0:01:58]} 22. hxg4 {[%clk 0:02:43]}  Qg3 {[%clk 0:01:52]} 23. Qf2 {[%clk 0:02:34]}  Qb8 {[%clk 0:01:51]} 24. Bf1 {[%clk 0:02:33]}  cxd4 {[%clk 0:01:48]} 25. cxd4 {[%clk 0:02:34]}  Rxc1 {[%clk 0:01:46]} 26. Rxc1 {[%clk 0:02:35]}  Rc8 {[%clk 0:01:46]} 27. Rd1 {[%clk 0:02:34]}  Qf4 {[%clk 0:01:42]} 28. d5 {[%clk 0:02:18]}  exd5 {[%clk 0:01:40]} 29. exd5 {[%clk 0:02:19]}  Rd8 {[%clk 0:01:36]} 30. d6 {[%clk 0:01:51]}  Bc6 {[%clk 0:01:11]} 31. Rd4 {[%clk 0:01:42]}  Qe5 {[%clk 0:01:00]} 32. Qd2 {[%clk 0:01:15]}  Qc5 {[%clk 0:00:59]} 33. Kh1 {[%clk 0:01:13]}  b5 {[%clk 0:00:46]} 34. Be2 {[%clk 0:00:41]}  Ne5 {[%clk 0:00:38]} 35. Qc3 {[%clk 0:00:24]}  Qxc3 {[%clk 0:00:33]} 36. Bxc3 {[%clk 0:00:25]}  Nc4 {[%clk 0:00:30]} 37. Bb4 {[%clk 0:00:24]}  a5 {[%clk 0:00:25]} 38. Bc5 {[%clk 0:00:23]}  a4 {[%clk 0:00:14]} 39. Bb4 {[%clk 0:00:22]}  f6 {[%clk 0:00:07]} 40. Bxc4+ {[%clk 0:00:20]}  bxc4 {[%clk 0:00:07]} 41. Rxc4 {[%clk 0:00:21]}  Be8 {[%clk 0:00:07]} 42. Rc7 {[%clk 0:00:21]}  Rd7 {[%clk 0:00:07]} 43. Rc8 {[%clk 0:00:21]}  Kf7 {[%clk 0:00:06]} 44. Kg1 {[%clk 0:00:21]}  Rb7 {[%clk 0:00:06]} 45. Kf2 {[%clk 0:00:21]}  Bd7 {[%clk 0:00:06]} 46. Ra8 {[%clk 0:00:21]}  Ke6 {[%clk 0:00:06]} 47. Ke3 {[%clk 0:00:21]}  Rb6 {[%clk 0:00:05]} 48. Kd4 {[%clk 0:00:18]}  Rb7 {[%clk 0:00:04]} 49. Kc4 {[%clk 0:00:16]}  Rb6 {[%clk 0:00:03]} 50. Ra5 {[%clk 0:00:15]}  Rc6+ {[%clk 0:00:03]} 51. Bc5 {[%clk 0:00:16]}  Rc8 {[%clk 0:00:02]} 52. f4 {[%clk 0:00:15]}  Rb8 {[%clk 0:00:02]} 53. f5+ {[%clk 0:00:15]}  Kf7 {[%clk 0:00:02]} 54. Ra7 {[%clk 0:00:15]}  Ke8 {[%clk 0:00:03]} 55. Bb4 {[%clk 0:00:12]}  Rc8+ {[%clk 0:00:03]} 56. Kd3 {[%clk 0:00:13]}  Rb8 {[%clk 0:00:04]} 57. g3 {[%clk 0:00:12]}  Rc8 {[%clk 0:00:04]} 58. Kd4 {[%clk 0:00:13]}  Rb8 {[%clk 0:00:04]} 59. Kc4 {[%clk 0:00:11]}  Rc8+ {[%clk 0:00:04]} 60. Bc5 {[%clk 0:00:12]}  Rb8 {[%clk 0:00:04]} 61. Kd5 {[%clk 0:00:10]}  Rc8 {[%clk 0:00:04]} 62. Bb6 {[%clk 0:00:08]}  Rb8 {[%clk 0:00:04]} 63. Bc7 {[%clk 0:00:07]}  Rc8 {[%clk 0:00:01]} 64. Kc5 {[%clk 0:00:06]}  Kf8 {[%clk 0:00:01]} 65. Kb6 {[%clk 0:00:05]} 1-0